bitfinex-derivatives/quotes_BNBF0:USTF0_20250529
["timestamp","ask_amount","ask_price","bid_price","bid_amount"]
[1748477671824,0.29101068,687.26,686.5,1.07266578]
[1748477672128,0.29101068,687.26,686.51,1.07266578]
[1748477672334,0.29101068,687.26,686.52,1.07266578]
[1748477672536,0.29101068,687.26,686.47,1.0714936]
[1748477672728,0.29101068,687.26,686.48,1.07266564]
[1748477672927,0.29101068,687.26,686.47,1.0714936]
[1748477674037,0.29101068,687.26,686.48,1.07253996]
[1748477674331,0.29101068,687.26,686.49,1.07253903]
[1748477674538,0.29101068,687.26,686.5,1.07253903]
[1748477674729,0.29101068,687.26,686.47,1.0714936]
[1748477674927,0.29101068,687.26,686.48,1.07253395]
[1748477675137,0.29101068,687.26,686.49,1.07253395]
[1748477675335,0.29101068,687.26,686.47,1.0714936]
[1748477676130,0.25342082,687.07,686.47,1.0714936]
[1748477676329,0.29109539,687.06,686.47,1.0714936]
[1748477678029,0.29109539,687.06,686.48,1.07141806]
[1748477678233,0.29109539,687.06,686.47,1.0714936]
[1748477680432,0.29109539,687.06,686.48,1.05957725]
[1748477680628,0.29109539,687.06,686.49,1.05957834]
[1748477680929,0.29109539,687.06,686.47,1.0714936]
[1748477682534,0.29109539,687.06,686.48,1.05957797]
[1748477682831,0.29109539,687.06,686.49,1.05957797]
[1748477683031,0.29109539,687.06,686.47,1.0714936]
[1748477683834,0.29109539,687.06,686.48,1.05958443]
[1748477684136,0.29109539,687.06,686.47,1.0714936]
[1748477684537,0.29109539,687.06,686.48,1.05954113]
[1748477684738,0.29109539,687.06,686.47,1.0714936]
[1748477684937,0.29109539,687.06,686.48,1.05954111]
[1748477685137,0.29109539,687.06,686.49,1.05954104]
[1748477685338,0.29109539,687.06,686.5,1.05954104]
[1748477685533,0.29109539,687.06,686.47,1.0714936]
[1748477687038,0.29109539,687.06,686.48,1.05953201]
[1748477687245,0.29109539,687.06,686.47,1.0714936]
[1748477687438,0.29109539,687.06,686.48,1.05953865]
[1748477687633,0.29109539,687.06,686.47,1.0714936]
[1748477687634,0.29109539,687.06,686.49,1.05953865]
[1748477687833,0.29109539,687.06,686.5,1.05953865]
[1748477688138,0.29109539,687.06,686.51,1.05968529]
[1748477688339,0.29109539,687.06,686.52,1.05968529]
[1748477688539,0.29109539,687.06,686.47,1.0714936]
[1748477688836,0.29109539,687.06,686.48,1.05942593]
[1748477689035,0.29109539,687.06,686.49,1.05942586]
[1748477689235,0.29109539,687.06,686.47,1.0714936]
[1748477690338,0.29109539,687.06,686.48,1.05942093]
[1748477690541,0.29109539,687.06,686.47,1.0714936]
[1748477691138,0.29109539,687.06,686.48,1.05942093]
[1748477691436,0.29109539,687.06,686.49,1.05942111]
[1748477691636,0.29109539,687.06,686.47,1.0714936]
[1748477693341,0.29109539,687.06,686.48,1.05934756]
[1748477693542,0.29109539,687.06,686.47,1.0714936]
[1748477694042,0.29109539,687.06,686.48,1.05934742]
[1748477694238,0.29109539,687.06,686.47,1.0714936]
[1748477695938,0.29109539,687.06,686.48,1.05926583]
[1748477696138,0.29109539,687.06,686.49,1.62731934]
[1748477696337,0.29109539,687.06,686.5,1.05921924]
[1748477696538,0.29109539,687.06,686.47,1.0714936]
[1748477696842,0.29109539,687.06,686.48,0.56805349]
[1748477697142,0.29109539,687.06,686.47,1.0714936]
[1748477697336,0.29109539,687.06,686.48,1.05920962]
[1748477697641,0.29109539,687.06,686.47,1.0714936]
[1748477697642,0.29109539,687.06,686.49,1.62726491]
[1748477697841,0.29109539,687.06,686.5,1.05921176]
[1748477698041,0.29109539,687.06,686.51,1.62726456]
[1748477698237,0.29109539,687.06,686.5,0.632]
[1748477698639,0.29109539,687.06,686.51,0.56805216]
[1748477698843,0.29109539,687.06,686.52,1.0592018]
[1748477699043,0.29109539,687.06,686.5,0.632]
[1748477699441,0.29109539,687.06,686.51,1.05920376]
[1748477699744,0.29109539,687.06,686.52,0.56804423]
[1748477700045,0.29109539,687.06,686.5,0.632]
[1748477700452,0.29109539,687.06,686.51,0.56799408]
[1748477700641,0.29109539,687.06,686.52,1.0591513]
[1748477700940,0.29109539,687.06,686.5,0.632]
[1748477701146,0.29109539,687.06,686.51,0.56797255]
[1748477701344,0.29109539,687.06,686.5,0.632]
[1748477702149,0.29109539,687.06,686.51,0.56796231]
[1748477702350,0.25340236,686.99,686.5,0.632]
[1748477702556,0.29112929,686.98,686.51,1.05912026]
[1748477702750,0.29112929,686.98,686.5,0.632]
[1748477703657,0.29112929,686.98,686.51,1.62806844]
[1748477703853,0.29112929,686.98,686.52,0.56827119]
[1748477704150,0.29112929,686.98,686.5,0.632]
[1748477704378,0.29112929,686.98,686.51,1.05970668]
[1748477704677,0.29112929,686.98,686.5,0.632]
[1748477704678,0.29112929,686.98,686.52,1.05970346]
[1748477704854,0.29112929,686.98,686.53,0.56816489]
[1748477705052,0.29112929,686.98,686.54,1.62783959]
[1748477705348,0.29112929,686.98,686.55,1.05967175]
[1748477705553,0.29112929,686.98,686.56,1.62783328]
[1748477705853,0.29112929,686.98,686.56,1.05967175]
[1748477706047,0.29112929,686.98,686.57,0.56816307]
[1748477706353,0.29112929,686.98,686.56,1.05967175]
[1748477706769,0.29112929,686.98,686.57,0.56816015]
[1748477706948,0.29112929,686.98,686.56,1.05967175]
[1748477707160,0.29112929,686.98,686.57,0.56816096]
[1748477707364,0.29112929,686.98,686.56,1.05967175]
[1748477707846,0.29112929,686.98,686.57,1.05675889]
[1748477708047,0.29112929,686.98,686.56,1.05967175]
[1748477708252,0.29112929,686.98,686.57,1.05676046]
[1748477708453,0.29112929,686.98,686.58,0.56768582]
[1748477708661,0.29112929,686.98,686.56,1.05967175]
[1748477709551,0.29112929,686.98,686.57,1.62445057]
[1748477709758,0.29112929,686.98,686.56,1.05967175]
[1748477710154,0.29112929,686.98,686.57,1.62446562]
[1748477710355,0.29112929,686.98,686.56,1.05967175]
[1748477710356,0.29112929,686.98,686.58,0.5677097]
[1748477710566,0.29112929,686.98,686.56,1.05967175]
[1748477711454,0.29112929,686.98,686.57,1.6217524]
[1748477712055,0.29112929,686.98,686.58,1.62177508]
[1748477712356,0.29112929,686.98,686.59,1.6217753]
[1748477712555,0.29112929,686.98,686.6,1.6217753]
[1748477712757,0.29112929,686.98,686.61,1.6217753]
[1748477712956,0.29112929,686.98,686.62,1.6217753]
[1748477713149,0.29112929,686.98,686.63,1.62198805]
[1748477713362,0.29112929,686.98,686.64,1.62198805]
[1748477713658,0.29112929,686.98,686.56,1.05967175]
[1748477713863,0.29112929,686.98,686.57,0.56835601]
[1748477714062,0.29112929,686.98,686.58,1.62207009]
[1748477714358,0.29112929,686.98,686.59,1.62207009]
[1748477714656,0.29112929,686.98,686.6,1.62019332]
[1748477714857,0.29112929,686.98,686.61,1.05056212]
[1748477715058,0.29112929,686.98,686.56,1.05967175]
[1748477715255,0.29112929,686.98,686.57,1.05056378]
[1748477715463,0.29112929,686.98,686.56,1.05967175]
[1748477715756,0.29112929,686.98,686.57,1.05056926]
[1748477715959,0.29112929,686.98,686.58,0.56648238]
[1748477716153,0.29112929,686.98,686.59,0.56648307]
[1748477716356,0.29112929,686.98,686.56,1.05967175]
[1748477716571,0.29112929,686.98,686.57,0.56649228]
[1748477716764,0.29112929,686.98,686.57,1.05059045]
[1748477717059,0.29112929,686.98,686.58,1.05059045]
[1748477717260,0.29112929,686.98,686.59,1.05059045]
[1748477717465,0.29112929,686.98,686.6,1.04971706]
[1748477717656,0.29112929,686.98,686.61,1.04970927]
[1748477717961,0.29112929,686.98,686.56,1.05967175]
[1748477719260,0.29112929,686.98,686.57,1.04973928]
[1748477719460,0.29112929,686.98,686.56,1.05967175]
[1748477720657,0.29112929,686.98,686.57,1.0498102]
[1748477720861,0.29112929,686.98,686.56,1.05967175]
[1748477722062,0.29112929,686.98,686.57,1.05081932]
[1748477722261,0.29112929,686.98,686.56,1.05967175]
[1748477729576,0.29112929,686.98,686.57,2.10550939]
[1748477729869,0.29112929,686.98,686.57,1.05250624]
[1748477730269,0.29112929,686.98,686.58,1.05279864]
[1748477730471,0.29112929,686.98,686.57,1.05250624]
[1748477730666,0.29112929,686.98,686.58,1.05279719]
[1748477730974,0.29112929,686.98,686.57,1.05250624]
[1748477731169,0.29112929,686.98,686.58,1.05279705]
[1748477731377,0.29112929,686.98,686.59,1.05279705]
[1748477731570,0.29112929,686.98,686.6,1.05279705]
[1748477731767,0.29112929,686.98,686.61,1.05279705]
[1748477731984,0.29112929,686.98,686.62,1.05398917]
[1748477732172,0.29112929,686.98,686.63,1.05398917]
[1748477732381,0.29112929,686.98,686.64,1.05398917]
[1748477732672,0.29112929,686.98,686.65,1.05433302]
[1748477732870,0.29112929,686.98,686.57,1.05250624]
[1748477732871,0.29112929,686.98,686.66,1.05433302]
[1748477733072,0.29112929,686.98,686.67,1.05433302]
[1748477733276,0.29112929,686.98,686.68,1.05470387]
[1748477733474,0.29112929,686.98,686.69,1.05497693]
[1748477733777,0.29112929,686.98,686.57,1.05250624]
[1748477733972,0.29112929,686.98,686.58,1.0549763]
[1748477734173,0.29112929,686.98,686.57,1.05250624]
[1748477734768,0.29112929,686.98,686.58,1.05497598]
[1748477734981,0.29112929,686.98,686.59,1.62274296]
[1748477735171,0.29112929,686.98,686.57,1.05250624]
[1748477735369,0.29112929,686.98,686.58,1.62327686]
[1748477735573,0.29112929,686.98,686.59,1.62327686]
[1748477735786,0.29112929,686.98,686.6,1.62343752]
[1748477735974,0.29112929,686.98,686.57,1.05250624]
[1748477736170,0.29112929,686.98,686.58,1.62343926]
[1748477736374,0.29112929,686.98,686.57,1.05250624]
[1748477736670,0.29112929,686.98,686.58,1.6237816]
[1748477736875,0.29112929,686.98,686.59,1.6237816]
[1748477737078,0.29112929,686.98,686.6,1.6237816]
[1748477737275,0.29112929,686.98,686.61,1.0559393]
[1748477737477,0.29112929,686.98,686.57,1.05250624]
[1748477737678,0.29112929,686.98,686.58,1.62468662]
[1748477737878,0.29112929,686.98,686.59,1.62468652]
[1748477738074,0.29112929,686.98,686.6,1.0565572]
[1748477738282,0.29112929,686.98,686.61,1.0565572]
[1748477738488,0.29112929,686.98,686.62,1.05655615]
[1748477738677,0.29112929,686.98,686.63,1.05655615]
[1748477738880,0.29112929,686.98,686.64,1.05655615]
[1748477739077,0.29112929,686.98,686.65,1.05655594]
[1748477739282,0.29112929,686.98,686.57,1.05250624]
[1748477739486,0.29112929,686.98,686.58,1.62521126]
[1748477739781,0.29112929,686.98,686.59,1.62521085]
[1748477739976,0.29112929,686.98,686.6,1.05654882]
[1748477740180,0.29112929,686.98,686.57,1.05250624]
[1748477741176,0.29112929,686.98,686.58,1.05654709]
[1748477741380,0.29112929,686.98,686.57,1.05250624]
[1748477741675,0.29112929,686.98,686.58,0.5686573]
[1748477741876,0.29112929,686.98,686.57,1.05250624]
[1748477742283,0.29112929,686.98,686.58,0.56865011]
[1748477742485,0.29112929,686.98,686.57,1.05250624]
[1748477743182,0.29112929,686.98,686.58,1.05652446]
[1748477743387,0.29112929,686.98,686.59,0.56865123]
[1748477743583,0.29112929,686.98,686.6,1.05565907]
[1748477743782,0.29112929,686.98,686.61,1.05564991]
[1748477743979,0.29112929,686.98,686.57,1.05250624]
[1748477744484,0.29112929,686.98,686.58,0.56864713]
[1748477744679,0.29112929,686.98,686.59,1.62429738]
[1748477744883,0.29112929,686.98,686.6,1.62429892]
[1748477745080,0.29112929,686.98,686.57,1.05250624]
[1748477745290,0.29112929,686.98,686.58,1.62518684]
[1748477745486,0.29112929,686.98,686.59,1.05654124]
[1748477745686,0.29112929,686.98,686.57,1.05250624]
[1748477746783,0.29112929,686.98,686.58,1.6251667]
[1748477746988,0.29112929,686.98,686.59,0.56864747]
[1748477747180,0.29112929,686.98,686.57,1.05250624]
[1748477747583,0.29112929,686.98,686.58,1.62518637]
[1748477747798,0.29112929,686.98,686.59,1.05653931]
[1748477748084,0.29112929,686.98,686.57,1.05250624]
[1748477748282,0.29112929,686.98,686.58,0.56929712]
[1748477748483,0.29112929,686.98,686.59,1.05783834]
[1748477748684,0.29112929,686.98,686.57,1.05250624]
[1748477748685,0.29112929,686.98,686.6,0.56929703]
[1748477748883,0.29112929,686.98,686.57,1.05250624]
[1748477748884,0.29112929,686.98,686.61,1.62713537]
[1748477749207,0.29112929,686.98,686.62,1.62713537]
[1748477749489,0.29112929,686.98,686.63,1.62604335]
[1748477749684,0.29112929,686.98,686.64,1.62634241]
[1748477749991,0.29112929,686.98,686.65,1.05671803]
[1748477750190,0.29112929,686.98,686.57,1.05250624]
[1748477750586,0.29112929,686.98,686.58,1.6263394]
[1748477750791,0.29112929,686.98,686.59,1.05671399]
[1748477750991,0.29112929,686.98,686.57,1.05250624]
[1748477752598,0.29112929,686.98,686.58,1.05673411]
[1748477752793,0.29112929,686.98,686.59,1.62635926]
[1748477752996,0.29112929,686.98,686.6,1.62635926]
[1748477753194,0.29112929,686.98,686.61,1.62635926]
[1748477753392,0.29112929,686.98,686.62,1.62635926]
[1748477753591,0.29112929,686.98,686.63,1.62643774]
[1748477753789,0.29112929,686.98,686.64,1.62643774]
[1748477753988,0.29112929,686.98,686.65,0.5696525]
[1748477754190,0.29112929,686.98,686.66,1.62647909]
[1748477754396,0.29112929,686.98,686.57,1.05250624]
[1748477754397,0.29112929,686.98,686.67,1.62647909]
[1748477754593,0.29112929,686.98,686.68,1.626505]
[1748477754790,0.29112929,686.98,686.69,1.626505]
[1748477754987,0.29112929,686.98,686.57,1.05250624]
[1748477755188,0.29112929,686.98,686.58,1.62655295]
[1748477755394,0.29112929,686.98,686.59,0.56967841]
[1748477755591,0.29112929,686.98,686.57,1.05250624]
[1748477755792,0.29112929,686.98,686.58,1.62627616]
[1748477755990,0.29112929,686.98,686.59,1.62627252]
[1748477756293,0.29112929,686.98,686.6,1.62627478]
[1748477756494,0.29112929,686.98,686.61,1.6263271]
[1748477756691,0.29112929,686.98,686.62,1.05665738]
[1748477756887,0.29112929,686.98,686.63,1.05665554]
[1748477757092,0.29112929,686.98,686.64,1.62632314]
[1748477757293,0.29112929,686.98,686.57,1.05250624]
[1748477757792,0.29112929,686.98,686.58,1.05715011]
[1748477757998,0.29112929,686.98,686.59,1.62681792]
[1748477758192,0.29112929,686.98,686.57,1.05250624]
[1748477758193,0.29112929,686.98,686.6,1.62681792]
[1748477758392,0.29112929,686.98,686.61,1.62681792]
[1748477758602,0.29112929,686.98,686.62,1.62681792]
[1748477758793,0.29112929,686.98,686.63,1.05715125]
[1748477758998,0.29112929,686.98,686.64,1.05714847]
[1748477759199,0.29112929,686.98,686.65,1.05714815]
[1748477759407,0.29112929,686.98,686.66,0.56966544]
[1748477759600,0.29112929,686.98,686.57,1.05250624]
[1748477760305,0.29112929,686.98,686.58,1.05671143]
[1748477760501,0.29112929,686.98,686.59,0.56966464]
[1748477760710,0.29112929,686.98,686.57,1.05250624]
[1748477760907,0.29112929,686.98,686.58,0.56965435]
[1748477761100,0.29112929,686.98,686.57,1.05250624]
[1748477761501,0.29112929,686.98,686.58,1.05668371]
[1748477761705,0.29112929,686.98,686.59,1.05667883]
[1748477761906,0.29112929,686.98,686.6,1.05667516]
[1748477762102,0.29112929,686.98,686.61,0.56964741]
[1748477762298,0.29112929,686.98,686.57,1.05250624]
[1748477762905,0.29112929,686.98,686.58,1.62631201]
[1748477763109,0.29112929,686.98,686.57,1.05250624]
[1748477763702,0.29112929,686.98,686.58,0.56964502]
[1748477763904,0.29112929,686.98,686.57,1.05250624]
[1748477764501,0.29112929,686.98,686.58,0.57008921]
[1748477764806,0.29112929,686.98,686.59,1.0570332]
[1748477765006,0.29112929,686.98,686.57,1.05250624]
[1748477765410,0.29112929,686.98,686.58,0.57008888]
[1748477765712,0.29112929,686.98,686.57,1.05250624]
[1748477766110,0.29112929,686.98,686.58,1.05697889]
[1748477766411,0.29112929,686.98,686.57,1.05250624]
[1748477766608,0.29112929,686.98,686.58,0.57005898]
[1748477766806,0.29112929,686.98,686.59,0.57005644]
[1748477767005,0.29112929,686.98,686.57,1.05250624]
[1748477767308,0.29112929,686.98,686.58,1.05696338]
[1748477767505,0.29112929,686.98,686.57,1.05250624]
[1748477767709,0.29112929,686.98,686.58,0.57005515]
[1748477767907,0.29112929,686.98,686.57,1.05250624]
[1748477768304,0.29112929,686.98,686.58,1.05708327]
[1748477768508,0.29112929,686.98,686.59,0.56972279]
[1748477768701,0.29112929,686.98,686.57,1.05250624]
[1748477768902,0.29112929,686.98,686.58,1.05647083]
[1748477769104,0.29112929,686.98,686.59,1.62619283]
[1748477769325,0.29112929,686.98,686.6,1.62619428]
[1748477769616,0.29112929,686.98,686.57,1.05250624]
[1748477769810,0.29112929,686.98,686.58,0.56965467]
[1748477770710,0.29112929,686.98,686.59,1.62602834]
[1748477770909,0.29112929,686.98,686.6,1.62602801]
[1748477771110,0.29112929,686.98,686.61,1.62602801]
[1748477771408,0.29112929,686.98,686.62,1.62587831]
[1748477771611,0.29112929,686.98,686.63,1.62602912]
[1748477771808,0.29112929,686.98,686.64,1.62603163]
[1748477772009,0.29112929,686.98,686.65,1.62603163]
[1748477772209,0.29112929,686.98,686.66,1.62603163]
[1748477772512,0.29112929,686.98,686.67,1.05624523]
[1748477772715,0.29112929,686.98,686.68,0.56978732]
[1748477772905,0.29112929,686.98,686.59,0.56963767]
[1748477773204,0.29112929,686.98,686.6,1.05593767]
[1748477773405,0.29112929,686.98,686.61,1.62632625]
[1748477773611,0.29112929,686.98,686.62,1.62633141]
[1748477773808,0.29112929,686.98,686.63,1.62633141]
[1748477774110,0.29112929,686.98,686.59,0.56963767]
[1748477774307,0.29112929,686.98,686.6,0.56992871]
[1748477774508,0.29112929,686.98,686.59,0.56963767]
[1748477775111,0.29112929,686.98,686.6,1.0550848]
[1748477775312,0.29112929,686.98,686.61,0.56992479]
[1748477775514,0.29112929,686.98,686.59,0.56963767]
[1748477776509,0.29112929,686.98,686.6,1.62503723]
[1748477776710,0.29112929,686.98,686.59,0.56963767]
[1748477776912,0.29112929,686.98,686.6,1.62503583]
[1748477777113,0.29112929,686.98,686.61,1.6249916]
[1748477777319,0.29112929,686.98,686.62,1.6249914]
[1748477777620,0.29112929,686.98,686.59,0.56963767]
[1748477777621,0.29112929,686.98,686.63,1.6249914]
[1748477777817,0.29112929,686.98,686.64,1.62724241]
[1748477778017,0.29112929,686.98,686.59,0.56963767]
[1748477778018,0.29112929,686.98,686.65,1.62724241]
[1748477778213,0.29112929,686.98,686.66,1.62634049]
[1748477778417,0.29112929,686.98,686.59,0.56963767]
[1748477778418,0.29112929,686.98,686.67,1.62634184]
[1748477778721,0.29112929,686.98,686.68,1.62634181]
[1748477778913,0.29112929,686.98,686.69,1.62634303]
[1748477779117,0.29112929,686.98,686.59,0.56963767]
[1748477779623,0.29112929,686.98,686.6,1.62708745]
[1748477779820,0.29112929,686.98,686.61,1.62708745]
[1748477780015,0.29112929,686.98,686.62,1.62708745]
[1748477780221,0.29112929,686.98,686.63,1.62708745]
[1748477780417,0.29112929,686.98,686.64,1.62708745]
[1748477780626,0.29112929,686.98,686.65,1.62708745]
[1748477780821,0.29112929,686.98,686.66,1.05772051]
[1748477781121,0.29112929,686.98,686.67,1.05771946]
[1748477781317,0.29112929,686.98,686.59,0.56963767]
[1748477781926,0.29112929,686.98,686.6,1.05771936]
[1748477782126,0.29112929,686.98,686.61,1.0577204]
[1748477782319,0.29112929,686.98,686.59,0.56963767]
[1748477782526,0.29112929,686.98,686.6,0.56936509]
[1748477782718,0.29112929,686.98,686.59,0.56963767]
[1748477783018,0.29112929,686.98,686.61,0.56936509]
[1748477783232,0.29112929,686.98,686.62,1.05722512]
[1748477783420,0.29112929,686.98,686.61,0.56936509]
[1748477784027,0.29112929,686.98,686.62,0.56936492]
[1748477784225,0.29112929,686.98,686.61,0.56936509]
[1748477784634,0.29112929,686.98,686.62,1.05722509]
[1748477784826,0.29112929,686.98,686.63,1.62659003]
[1748477785125,0.29112929,686.98,686.61,0.56936509]
[1748477785340,0.29112929,686.98,686.62,1.62658963]
[1748477785630,0.29112929,686.98,686.61,0.56936509]
[1748477785833,0.29112929,686.98,686.62,1.0572219]
[1748477786030,0.29112929,686.98,686.61,0.56936509]
[1748477786234,0.29112929,686.98,686.62,1.05722308]
[1748477786427,0.29112929,686.98,686.61,0.56936509]
[1748477786637,0.29112929,686.98,686.62,1.62658708]
[1748477786830,0.29112929,686.98,686.61,0.56936509]
[1748477787031,0.29112929,686.98,686.62,1.62657939]
[1748477787323,0.29112929,686.98,686.63,1.62658088]
[1748477787527,0.29112929,686.98,686.64,1.62623898]
[1748477787732,0.29112929,686.98,686.65,1.62596101]
[1748477787925,0.29112929,686.98,686.66,1.62596101]
[1748477788129,0.29112929,686.98,686.61,0.56936509]
[1748477788524,0.29112929,686.98,686.62,1.05679973]
[1748477788828,0.29112929,686.98,686.63,1.0567998]
[1748477789030,0.29112929,686.98,686.61,0.56936509]
[1748477789224,0.29112929,686.98,686.62,1.05680001]
[1748477789530,0.29112929,686.98,686.61,0.56936509]
[1748477790025,0.29112929,686.98,686.62,0.56920201]
[1748477790231,0.29112929,686.98,686.61,0.56936509]
[1748477790435,0.29112929,686.98,686.62,1.62606329]
[1748477790631,0.29112929,686.98,686.63,1.62606329]
[1748477790931,0.29112929,686.98,686.64,1.62606626]
[1748477791142,0.29112929,686.98,686.65,1.05617069]
[1748477791332,0.29112929,686.98,686.66,1.62525087]
[1748477791528,0.29112929,686.98,686.61,0.56936509]
[1748477791529,0.29112929,686.98,686.67,1.05614734]
[1748477791730,0.29112929,686.98,686.61,0.56936509]
[1748477791932,0.29112929,686.98,686.62,1.05614206]
[1748477792130,0.29112929,686.98,686.61,0.56936509]
[1748477792338,0.29112929,686.98,686.62,0.56906499]
[1748477792529,0.29112929,686.98,686.61,0.56936509]
[1748477793129,0.29112929,686.98,686.62,1.05610217]
[1748477793434,0.29112929,686.98,686.63,1.05607251]
[1748477793635,0.29112929,686.98,686.61,0.56936509]
[1748477794234,0.29112929,686.98,686.62,0.56904818]
[1748477794429,0.29112929,686.98,686.61,0.56936509]
[1748477794631,0.29112929,686.98,686.62,1.0564848]
[1748477794836,0.29112929,686.98,686.61,0.56936509]
[1748477795034,0.29112929,686.98,686.62,0.56904823]
[1748477795330,0.29112929,686.98,686.63,0.56903469]
[1748477795534,0.29112929,686.98,686.64,1.05645991]
[1748477795835,0.29112929,686.98,686.65,1.05646081]
[1748477796034,0.29112929,686.98,686.61,0.56936509]
[1748477797031,0.29112929,686.98,686.62,0.5690463]
[1748477797236,0.29112929,686.98,686.61,0.56936509]
[1748477797933,0.29112929,686.98,686.62,1.62566535]
[1748477798130,0.29112929,686.98,686.61,0.56936509]
[1748477798337,0.29112929,686.98,686.62,1.05658541]
[1748477798630,0.29112929,686.98,686.63,1.05659502]
[1748477798836,0.29112929,686.98,686.64,1.05659502]
[1748477799032,0.29112929,686.98,686.65,1.62572576]
[1748477799243,0.29112929,686.98,686.66,1.62572576]
[1748477799434,0.29112929,686.98,686.67,1.62572576]
[1748477799633,0.29112929,686.98,686.68,1.62662377]
[1748477799940,0.29112929,686.98,686.69,1.6261154]
[1748477800251,0.29112929,686.98,686.7,0.56892605]
[1748477800441,0.29112929,686.98,686.71,1.62617609]
[1748477800634,0.29112929,686.98,686.72,0.56892605]
[1748477800931,0.29112929,686.98,686.73,1.62618634]
[1748477801127,0.29112929,686.98,686.74,1.62618634]
[1748477801342,0.29112929,686.98,686.75,1.05761593]
[1748477801529,0.29112929,686.98,686.76,1.62656151]
[1748477801733,0.29112929,686.98,686.77,1.62656148]
[1748477801931,0.29112929,686.98,686.78,1.62661633]
[1748477802238,0.29112929,686.98,686.79,1.62660938]
[1748477802436,0.29112929,686.98,686.8,1.62660938]
[1748477802631,0.29112929,686.98,686.81,1.05764682]
[1748477802834,0.29112929,686.98,686.61,0.56936509]
[1748477803032,0.29112929,686.98,686.62,1.62687977]
[1748477803240,0.29112929,686.98,686.63,1.62687977]
[1748477803537,0.29112929,686.98,686.64,1.62687935]
[1748477803840,0.29112929,686.98,686.65,0.56899273]
[1748477804033,0.29112929,686.98,686.66,1.62688218]
[1748477804334,0.29112929,686.98,686.67,1.62697776]
[1748477804531,0.29112929,686.98,686.61,0.56936509]
[1748477804532,0.29112929,686.98,686.68,1.62697776]
[1748477804735,0.29112929,686.98,686.69,1.62697776]
[1748477804935,0.29112929,686.98,686.7,1.62697776]
[1748477805131,0.29112929,686.98,686.61,0.56936509]
[1748477805337,0.29112929,686.98,686.62,0.56902291]
[1748477805536,0.29112929,686.98,686.63,1.62680419]
[1748477805733,0.29112929,686.98,686.64,1.62680469]
[1748477805935,0.29112929,686.98,686.65,1.62680469]
[1748477806137,0.29112929,686.98,686.66,1.62680469]
[1748477806332,0.29112929,686.98,686.67,1.62680469]
[1748477806634,0.29112929,686.98,686.68,1.62682248]
[1748477806937,0.29112929,686.98,686.69,1.62682248]
[1748477807132,0.29112929,686.98,686.7,1.62682248]
[1748477807339,0.29112929,686.98,686.71,1.62682248]
[1748477807648,0.29112929,686.98,686.72,1.05776502]
[1748477807836,0.29112929,686.98,686.73,1.62682402]
[1748477808136,0.29112929,686.98,686.74,1.62682402]
[1748477808333,0.29112929,686.98,686.75,1.62682402]
[1748477808537,0.29112929,686.98,686.61,0.56936509]
[1748477808538,0.29112929,686.98,686.76,1.62682402]
[1748477808833,0.29112929,686.98,686.61,0.56936509]
[1748477809339,0.29112929,686.98,686.62,1.62695713]
[1748477809537,0.29112929,686.98,686.63,1.62695713]
[1748477809737,0.29112929,686.98,686.64,1.62695713]
[1748477809934,0.29112929,686.98,686.65,0.56919928]
[1748477810133,0.29112929,686.98,686.66,1.6270355]
[1748477810338,0.29112929,686.98,686.67,1.6270355]
[1748477810534,0.29112929,686.98,686.68,1.6270355]
[1748477810738,0.29112929,686.98,686.61,0.56936509]
[1748477810939,0.29112929,686.98,686.62,0.56928163]
[1748477811134,0.29112929,686.98,686.63,1.62706718]
[1748477811338,0.29112929,686.98,686.61,0.56936509]
[1748477811339,0.29112929,686.98,686.64,1.62706046]
[1748477811540,0.29112929,686.98,686.65,0.56927898]
[1748477811740,0.29112929,686.98,686.66,1.62706046]
[1748477811942,0.29112929,686.98,686.67,1.62706046]
[1748477812237,0.29112929,686.98,686.61,0.56936509]
[1748477813042,0.29112929,686.98,686.62,1.62706793]
[1748477813242,0.29112929,686.98,686.63,1.62752421]
[1748477813443,0.29112929,686.98,686.61,0.56936509]
[1748477813636,0.29112929,686.98,686.62,1.05804861]
[1748477813937,0.29112929,686.98,686.61,0.56936509]
[1748477814144,0.29112929,686.98,686.62,1.05804554]
[1748477814438,0.29112929,686.98,686.63,1.05847239]
[1748477814643,0.29112929,686.98,686.64,0.56970601]
[1748477814936,0.29112929,686.98,686.65,0.56970685]
[1748477815241,0.29112929,686.98,686.61,0.56936509]
[1748477815838,0.29112929,686.98,686.62,1.05912459]
[1748477816038,0.29112929,686.98,686.61,0.56936509]
[1748477816938,0.29112929,686.98,686.62,1.63090898]
[1748477817143,0.29112929,686.98,686.63,1.63090898]
[1748477817337,0.29112929,686.98,686.64,1.63090432]
[1748477817542,0.29112929,686.98,686.65,1.63090432]
[1748477817742,0.29112929,686.98,686.66,1.63092402]
[1748477818042,0.29112929,686.98,686.67,0.5706804]
[1748477818238,0.29112929,686.98,686.61,0.56936509]
[1748477818442,0.29112929,686.98,686.62,0.57068627]
[1748477818643,0.29112929,686.98,686.61,0.56936509]
[1748477818844,0.29112929,686.98,686.62,0.57068494]
[1748477819045,0.29112929,686.98,686.61,0.56936509]
[1748477819242,0.29112929,686.98,686.62,1.06029132]
[1748477819445,0.29112929,686.98,686.61,0.56936509]
[1748477820446,0.29112929,686.98,686.62,1.06069226]
[1748477820647,0.29112929,686.98,686.63,0.57022079]